lending/lending_fUSD_20250318
["ID","MTS","AMOUNT","RATE_DAILY","PERIOD"]
[356366897,1742339524701,-500.0,0.00037534,12]
[356366898,1742339524711,-523.91,0.00037534,12]
[356366899,1742339524721,-500.0,0.00037534,12]
[356366900,1742339524731,-845.67,0.00037534,12]
[356366901,1742339524741,-500.0,0.00037534,12]
[356366902,1742339524751,-500.0,0.00037534,12]
[356366903,1742339524761,-1156.08,0.00037534,12]
[356366904,1742339524771,-500.0,0.00037534,12]
[356366905,1742339524782,-510.37,0.00037534,12]
[356366906,1742339524795,-500.0,0.00037534,12]
[356366907,1742339524805,-500.0,0.00037534,12]
[356366908,1742339524815,-500.0,0.00037534,12]
[356366909,1742339524826,-655.83,0.00037534,12]
[356366910,1742339524836,-1175.67,0.00037534,12]
[356366911,1742339524846,-1360.65,0.00037534,12]
[356366912,1742339524857,-675.44,0.00037534,12]
[356366913,1742339524868,-584.29,0.00037534,12]
[356366914,1742339524877,-500.0,0.00037534,12]
[356366915,1742339524887,-500.0,0.00037534,12]
[356366916,1742339524896,-535.37,0.00037534,12]
[356366917,1742339524905,-940.73,0.00037534,12]
[356366918,1742339524915,-500.0,0.00037534,12]
[356366919,1742339524925,-500.0,0.00037534,12]
[356366920,1742339524934,-661.64,0.00037534,12]
[356366921,1742339524943,-628.6,0.00037534,12]
[356366922,1742339524954,-872.38,0.00037534,12]
[356366923,1742339524963,-671.95,0.00037534,12]
[356366924,1742339524973,-589.35,0.00037534,12]
[356366925,1742339524983,-500.0,0.00037534,12]
[356366926,1742339524993,-500.0,0.00037534,12]
[356366927,1742339525003,-500.0,0.00037534,12]
[356366928,1742339525013,-500.0,0.00037534,12]
[356366929,1742339525023,-500.0,0.00037534,12]
[356366930,1742339525033,-2111.58,0.00037534,12]
[356366931,1742339525043,-1118.44,0.00037534,12]
[356366932,1742339525053,-500.0,0.00037534,12]
[356366933,1742339525062,-500.0,0.00037534,12]
[356366934,1742339525072,-952.51,0.00037534,12]
[356366935,1742339525082,-500.0,0.00037534,12]
[356366936,1742339525091,-1141.77,0.00037534,12]
[356366937,1742339525101,-509.9,0.00037534,12]
[356366938,1742339525111,-786.29,0.00037534,12]
[356366939,1742339525120,-500.0,0.00037534,12]
[356366940,1742339525129,-885.74,0.00037534,12]
[356366941,1742339525138,-500.0,0.00037534,12]
[356366942,1742339525147,-500.0,0.00037534,12]
[356366943,1742339525157,-853.02,0.00037534,12]
[356366944,1742339525167,-500.04176423,0.00037534,12]
[356366945,1742339525176,-500.0,0.00037534,12]
[356366946,1742339525185,-500.0,0.00037534,12]
[356366947,1742339525194,-930.16,0.00037534,12]
[356366948,1742339525203,-534.99,0.00037534,12]
[356366949,1742339525212,-500.0,0.00037534,12]
[356366950,1742339525221,-554.71,0.00037534,12]
[356366951,1742339525230,-500.0,0.00037534,12]
[356366952,1742339525238,-1096.04,0.00037534,12]
[356366953,1742339525247,-500.0,0.00037534,12]
[356366954,1742339525256,-500.0,0.00037534,12]
[356366955,1742339525264,-669.21,0.00037534,12]
[356366956,1742339525273,-2116.57,0.00037534,12]
[356366957,1742339525282,-432.72067494,0.00037534,12]
[356366958,1742339525291,-500.0,0.00037534,12]
[356366959,1742339525300,-500.0,0.00037534,12]
[356366960,1742339525309,-500.0,0.00037534,12]
[356366961,1742339525319,-500.0,0.00037534,12]
[356366962,1742339525329,-824.59,0.00037534,12]
[356366963,1742339525338,-1273.18,0.00037534,12]
[356366964,1742339525347,-500.0,0.00037534,12]
[356366965,1742339525354,-500.0,0.00037534,12]
[356366966,1742339525362,-662.07,0.00037534,12]
[356366967,1742339525370,-1001.65,0.00037534,12]
[356366968,1742339525377,-865.19,0.00037534,12]
[356366969,1742339525385,-500.0,0.00037534,12]
[356366970,1742339525393,-500.0,0.00037534,12]
[356366971,1742339525400,-569.57,0.00037534,12]
[356366972,1742339525408,-850.25,0.00037534,12]
[356366973,1742339525418,-2025.31,0.00037534,12]
[356366974,1742339525425,-500.0,0.00037534,12]
[356366975,1742339525432,-575.01919142,0.00037534,12]
[356366976,1742339525439,-500.0,0.00037534,12]
[356366977,1742339525448,-1125.43,0.00037534,12]
[356366978,1742339525455,-1034.97,0.00037534,12]
[356366979,1742339525462,-736.13,0.00037534,12]
[356366980,1742339525470,-500.0,0.00037534,12]
[356366981,1742339525477,-500.0,0.00037534,12]
[356366982,1742339525485,-500.0,0.00037534,12]
[356366983,1742339525492,-500.0,0.00037534,12]
[356366984,1742339525500,-500.0,0.00037534,12]
[356366985,1742339525508,-705.75,0.00037534,12]
[356366986,1742339525516,-500.0,0.00037534,12]
[356366987,1742339525524,-1168.81,0.00037534,12]
[356366988,1742339525530,-500.0,0.00037534,12]
[356366989,1742339525539,-500.0,0.00037534,12]
[356366990,1742339525547,-909.53,0.00037534,12]
[356366991,1742339525553,-1214.66,0.00037534,12]
[356366992,1742339525560,-750.56,0.00037534,12]
[356366993,1742339525567,-2037.42892749,0.00037534,30]
[356366994,1742339525574,-500.0,0.00037534,12]
[356366995,1742339525581,-999.43,0.00037534,12]
[356366996,1742339525589,-200.0,0.00037534,7]
[356366997,1742339525597,-912.96,0.00037534,12]
[356366998,1742339525605,-500.0,0.00037534,12]
[356366999,1742339525612,-628.87,0.00037534,12]
[356367000,1742339525620,-1022.31,0.00037534,12]
[356367001,1742339525628,-500.0,0.00037534,12]
[356367002,1742339525637,-500.0,0.00037534,12]
[356367003,1742339525646,-664.59,0.00037534,12]
[356367004,1742339525654,-970.21,0.00037534,12]
[356367005,1742339525661,-605.69,0.00037534,12]
[356367006,1742339525668,-1253.42,0.00037534,12]
[356367007,1742339525676,-1388.92,0.00037534,12]
[356367008,1742339525685,-500.0,0.00037534,12]
[356367009,1742339525694,-500.0,0.00037534,12]
[356367010,1742339525700,-500.0,0.00037534,12]
[356367011,1742339525708,-500.0,0.00037534,12]
[356367012,1742339525716,-500.0,0.00037534,12]
[356367013,1742339525724,-500.0,0.00037534,12]
[356367014,1742339525732,-1024.33,0.00037534,12]
[356367015,1742339525741,-562.91012914,0.00037534,12]
[356367016,1742339525751,-603.22,0.00037534,12]
[356367017,1742339525760,-747.21,0.00037534,12]
[356367018,1742339525769,-500.0,0.00037534,12]
[356367019,1742339525780,-500.0,0.00037534,12]
[356367020,1742339525793,-500.0,0.00037534,12]
[356367021,1742339525803,-500.0,0.00037534,12]
[356367022,1742339525812,-1242.02,0.00037534,12]
[356367023,1742339525822,-843.17,0.00037534,12]
[356367024,1742339525834,-535.11,0.00037534,12]
[356367025,1742339525844,-532.91,0.00037534,12]
[356367026,1742339525854,-556.61864179,0.00037534,12]
[356367027,1742339525865,-500.0,0.00037534,12]
[356367028,1742339525874,-536.51,0.00037534,7]
[356367029,1742339525883,-500.0,0.00037534,12]
[356367030,1742339525894,-864.22,0.00037534,12]
[356367031,1742339525904,-500.0,0.00037534,12]
[356367032,1742339525914,-500.0,0.00037534,12]
[356367033,1742339525924,-500.0,0.00037534,12]
[356367034,1742339525934,-500.0,0.00037534,12]
[356367035,1742339525944,-500.0,0.00037534,12]
[356367036,1742339525955,-533.72849949,0.00037534,12]
[356367037,1742339525964,-500.0,0.00037534,12]
[356367038,1742339525975,-1425.59,0.00037534,12]
[356367039,1742339525985,-500.0,0.00037534,12]
[356367040,1742339525995,-838.26,0.00037534,12]
[356367041,1742339526005,-500.0,0.00037534,12]
[356367042,1742339526014,-1035.77,0.00037534,12]
[356367043,1742339526024,-1119.9,0.00037534,12]
[356367044,1742339526034,-500.0,0.00037534,12]
[356367045,1742339526043,-940.64,0.00037534,12]
[356367046,1742339526053,-500.0,0.00037534,12]
[356367047,1742339526063,-500.0,0.00037534,12]
[356367048,1742339526072,-757.19,0.00037534,12]
[356367049,1742339526082,-500.0,0.00037534,12]
[356367050,1742339526092,-500.0,0.00037534,12]
[356367051,1742339526102,-500.0,0.00037534,12]
[356367052,1742339526112,-1602.15,0.00037534,12]
[356367053,1742339526122,-1002.8,0.00037534,12]
[356367054,1742339526131,-1331.13,0.00037534,12]
[356367055,1742339526141,-1198.43,0.00037534,12]
[356367056,1742339526151,-500.0,0.00037534,12]
[356367057,1742339526162,-500.0,0.00037534,12]
[356367058,1742339526172,-500.0,0.00037534,12]
[356367059,1742339526182,-649.81,0.00037534,12]
[356367060,1742339526192,-500.0,0.00037534,12]
[356367061,1742339526201,-500.0,0.00037534,12]
[356367062,1742339526210,-999.15,0.00037534,12]
[356367063,1742339526220,-2598.97,0.00037534,12]
[356367064,1742339526230,-500.0,0.00037534,12]
[356367065,1742339526240,-3644.21,0.00037534,12]
[356367066,1742339526250,-500.0,0.00037534,12]
[356367067,1742339526260,-500.0,0.00037534,12]
[356367068,1742339526270,-1387.99,0.00037534,12]
[356367069,1742339526279,-843.24,0.00037534,12]
[356367070,1742339526289,-500.0,0.00037534,12]
[356367071,1742339526299,-2465.62,0.00037534,12]
[356367072,1742339526309,-975.0,0.00037534,12]
[356367073,1742339526319,-609.77,0.00037534,12]
[356367074,1742339526329,-1078.91,0.00037534,12]
[356367075,1742339526338,-379.03194451,0.00037534,12]
[356367076,1742339526348,-974.58,0.00037534,12]
[356367077,1742339526359,-2236.78,0.00037534,12]
[356367078,1742339526368,-1919.16,0.00037534,12]
[356367079,1742339526379,-2066.04,0.00037534,12]
[356367080,1742339526389,-1744.56,0.00037534,12]
[356367081,1742339526397,-924.09,0.00037534,12]
[356367082,1742339526407,-965.89,0.00037534,12]
[356367083,1742339526416,-500.0,0.00037534,12]
[356367084,1742339526428,-630.53,0.00037534,12]
[356367085,1742339526437,-2170.13,0.00037534,7]
[356367086,1742339526447,-500.0,0.00037534,12]
[356367087,1742339526456,-500.0,0.00037534,12]
[356367088,1742339526466,-500.0,0.00037534,12]
[356367089,1742339526476,-4236.85,0.00037534,12]
[356367090,1742339526486,-940.24,0.00037534,12]
[356367091,1742339526496,-701.55,0.00037534,12]
[356367092,1742339526505,-2071.16,0.00037534,12]
[356367093,1742339526515,-2364.63,0.00037534,12]
[356367094,1742339526525,-833.55,0.00037534,12]
[356367095,1742339526534,-1084.3,0.00037534,12]
[356367096,1742339526544,-1166.33,0.00037534,12]
[356367097,1742339526554,-500.0,0.00037534,12]
[356367098,1742339526565,-1018.16,0.00037534,12]
[356367099,1742339526575,-500.0,0.00037534,12]
[356367100,1742339526585,-3791.02,0.00037534,12]
[356367101,1742339526594,-722.87,0.00037534,12]
[356367102,1742339526604,-591.18,0.00037534,12]
[356367103,1742339526614,-627.35,0.00037534,12]
[356367104,1742339526624,-2218.35,0.00037534,12]
[356367105,1742339526634,-433.99,0.00037534,12]
[356367106,1742339526644,-500.0,0.00037534,12]
[356367107,1742339526654,-596.43963748,0.00037534,12]
[356367108,1742339526664,-2207.71,0.00037534,12]
[356367109,1742339526674,-1038.13,0.00037534,12]
[356367110,1742339526684,-7286.97,0.00037534,2]
[356367111,1742339526694,-500.0,0.00037534,12]
[356367112,1742339526704,-500.0,0.00037534,12]
[356367113,1742339526714,-500.0,0.00037534,12]
[356367114,1742339526724,-662.54,0.00037534,12]
[356367115,1742339526734,-4093.1,0.00037534,12]
[356367116,1742339526743,-500.0,0.00037534,12]
[356367117,1742339526752,-500.0,0.00037534,12]
[356367118,1742339526763,-617.61,0.00037534,12]
[356367119,1742339526773,-884.25,0.00037534,12]
[356367120,1742339526783,-568.35,0.00037534,12]
[356367121,1742339526795,-500.0,0.00037534,12]
[356367122,1742339526805,-2314.16,0.00037534,12]
[356367123,1742339526815,-1249.76,0.00037534,12]
[356367124,1742339526824,-590.8,0.00037534,12]
[356367125,1742339526834,-605.74,0.00037534,12]
[356367126,1742339526844,-4019.27,0.00037534,12]
[356367127,1742339526853,-845.44,0.00037534,12]
[356367128,1742339526865,-500.0,0.00037534,12]
[356367129,1742339526874,-500.0,0.00037534,12]
[356367130,1742339526884,-500.0,0.00037534,12]
[356367131,1742339526894,-500.0,0.00037534,12]
[356367132,1742339526903,-1263.79,0.00037534,12]
[356367133,1742339526913,-500.0,0.00037534,12]
[356367134,1742339526922,-722.51,0.00037534,12]
[356367135,1742339526932,-841.11,0.00037534,12]
[356367136,1742339526942,-582.04,0.00037534,12]
[356367137,1742339526951,-1361.67,0.00037534,12]
[356367138,1742339526961,-1473.86,0.00037534,12]
[356367139,1742339526971,-713.87,0.00037534,12]
[356367140,1742339526980,-500.0,0.00037534,12]
[356367141,1742339526990,-1912.63,0.00037534,12]
[356367142,1742339527000,-500.0,0.00037534,12]
[356367143,1742339527009,-714.31,0.00037534,12]
[356367144,1742339527019,-635.53,0.00037534,12]
[356367145,1742339527027,-1883.04,0.00037534,12]
[356367146,1742339527037,-500.0,0.00037534,12]
[356367147,1742339527046,-500.0,0.00037534,12]
[356367148,1742339527056,-5988.8,0.00037534,12]
[356367149,1742339527065,-500.0,0.00037534,12]
[356367150,1742339527074,-2180.97,0.00037534,10]
[356367151,1742339527084,-1955.72,0.00037534,12]
[356367152,1742339527094,-2131.38,0.00037534,12]
[356367153,1742339527103,-6906.57,0.00037534,12]
[356367154,1742339527112,-500.0,0.00037534,12]
[356367155,1742339527122,-713.4,0.00037534,12]
[356367156,1742339527132,-1357.37,0.00037534,12]
[356367157,1742339527142,-758.94,0.00037534,12]
[356367158,1742339527152,-500.0,0.00037534,12]
[356367159,1742339527163,-517.02,0.00037534,12]
[356367160,1742339527172,-1496.75,0.00037534,12]
[356367161,1742339527182,-1214.53,0.00037534,12]
[356367162,1742339527191,-500.0,0.00037534,12]
[356367163,1742339527200,-500.0,0.00037534,12]
[356367164,1742339527210,-500.0,0.00037534,12]
[356367165,1742339527219,-2414.38,0.00037534,12]
[356367166,1742339527228,-500.0,0.00037534,12]
[356367167,1742339527238,-1375.9,0.00037534,12]
[356367168,1742339527247,-1974.79,0.00037534,12]
[356367169,1742339527257,-925.56,0.00037534,12]
[356367170,1742339527266,-712.94,0.00037534,12]
[356367171,1742339527276,-839.12,0.00037534,12]
[356367172,1742339527285,-1067.84,0.00037534,12]
[356367173,1742339527294,-1426.33,0.00037534,12]
[356367174,1742339527303,-767.88,0.00037534,12]
[356367175,1742339527312,-1432.86,0.00037534,12]
[356367176,1742339527322,-780.68,0.00037534,12]
[356367177,1742339527331,-1216.8,0.00037534,12]
[356367178,1742339527342,-1487.69,0.00037534,12]
[356367179,1742339527351,-500.0,0.00037534,12]
[356367180,1742339527360,-1708.8,0.00037534,12]
[356367181,1742339527369,-500.0,0.00037534,12]
[356367182,1742339527378,-674.04,0.00037534,12]
[356367183,1742339527387,-913.22,0.00037534,12]
[356367184,1742339527396,-1017.99,0.00037534,12]
[356367185,1742339527404,-1929.03,0.00037534,12]
[356367186,1742339527414,-902.37,0.00037534,12]
[356367187,1742339527423,-2290.36,0.00037534,12]
[356367188,1742339527432,-1430.23,0.00037534,12]
[356367189,1742339527441,-500.0,0.00037534,12]
[356367190,1742339527450,-1072.64,0.00037534,12]
[356367191,1742339527460,-500.0,0.00037534,12]
[356367192,1742339527469,-1760.11,0.00037534,12]
[356367193,1742339527478,-1638.63,0.00037534,12]
[356367194,1742339527488,-1729.5,0.00037534,12]
[356367195,1742339527497,-794.12,0.00037534,12]
[356367196,1742339527507,-1045.11,0.00037534,12]
[356367197,1742339527516,-682.57,0.00037534,12]
[356367198,1742339527526,-500.0,0.00037534,12]
[356367199,1742339527536,-500.0,0.00037534,12]
[356367200,1742339527545,-1395.45,0.00037534,12]
[356367201,1742339527552,-1231.14,0.00037534,12]
[356367202,1742339527559,-1432.26,0.00037534,12]
[356367203,1742339527565,-1130.18,0.00037534,12]
[356367204,1742339527572,-500.0,0.00037534,12]
[356367205,1742339527579,-1071.53,0.00037534,12]
[356367206,1742339527586,-500.0,0.00037534,12]
[356367207,1742339527594,-10881.54,0.00037534,12]
[356367208,1742339527603,-940.53,0.00037534,12]
[356367209,1742339527612,-931.98,0.00037534,12]
[356367210,1742339527621,-643.93,0.00037534,12]
[356367211,1742339527631,-736.61,0.00037534,12]
[356367212,1742339527639,-1889.22,0.00037534,12]
[356367213,1742339527649,-500.0,0.00037534,12]
[356367214,1742339527659,-1912.43,0.00037534,12]
[356367215,1742339527668,-1500.0,0.00037534,12]
[356367216,1742339527677,-500.0,0.00037534,12]
[356367217,1742339527686,-867.89,0.00037534,12]
[356367218,1742339527695,-655.9,0.00037534,12]
[356367219,1742339527704,-3492.09,0.00037534,12]
[356367220,1742339527714,-8347.58,0.00037534,12]
[356367221,1742339527723,-793.27,0.00037534,12]
[356367222,1742339527732,-982.97,0.00037534,12]
[356367223,1742339527742,-500.0,0.00037534,12]
[356367224,1742339527751,-2617.2,0.00037534,12]
[356367225,1742339527761,-500.0,0.00037534,12]
[356367226,1742339527770,-500.0,0.00037534,12]
[356367227,1742339527781,-674.83,0.00037534,12]
[356367228,1742339527794,-2613.79,0.00037534,12]
[356367229,1742339527804,-1198.65,0.00037534,12]
[356367230,1742339528049,-500.0,0.00037534,12]
[356367231,1742339528059,-500.0,0.00037534,12]
[356367232,1742339528068,-1104.92,0.00037534,12]
[356367233,1742339528078,-1000.0,0.00037534,12]
[356367234,1742339528087,-500.0,0.00037534,120]
[356367235,1742339528095,-1351.56,0.00037534,12]
[356367236,1742339528102,-500.0,0.00037534,12]
[356367237,1742339528110,-573.24,0.00037534,12]
[356367238,1742339528120,-1155.96,0.00037534,12]
[356367239,1742339528130,-592.77,0.00037534,12]
[356367240,1742339528139,-678.37,0.00037534,12]
[356367241,1742339528149,-819.5,0.00037534,12]
[356367242,1742339528159,-1747.47,0.00037534,12]
[356367243,1742339528169,-881.57,0.00037534,12]
[356367244,1742339528178,-733.05,0.00037534,12]
[356367245,1742339528188,-566.73,0.00037534,12]
[356367246,1742339528197,-779.59,0.00037534,12]
[356367247,1742339528206,-700.61,0.00037534,12]
[356367248,1742339528216,-516.6995646,0.00037534,12]
[356367249,1742339528226,-500.0,0.00037534,12]
[356367250,1742339528235,-6201.97,0.00037534,12]
[356367251,1742339528245,-2724.32,0.00037534,12]
[356367252,1742339528254,-600.64439445,0.00037534,12]
[356367253,1742339528263,-673.71,0.00037534,12]
[356367254,1742339528272,-500.0,0.00037534,6]
[356367255,1742339528282,-634.03,0.00037534,12]
[356367256,1742339528291,-1388.66,0.00037534,12]
[356367257,1742339528300,-1201.66,0.00037534,12]
[356367258,1742339528310,-500.0,0.00037534,12]
[356367259,1742339528319,-789.17,0.00037534,12]
[356367260,1742339528329,-500.0,0.00037534,12]
[356367261,1742339528338,-500.0,0.00037534,12]
[356367262,1742339528348,-500.0,0.00037534,12]
[356367263,1742339528357,-765.41,0.00037534,12]
[356367264,1742339528367,-637.48,0.00037534,12]
[356367265,1742339528377,-1408.89,0.00037534,12]
[356367266,1742339528386,-1079.25,0.00037534,12]
[356367267,1742339528395,-500.0,0.00037534,12]
[356367268,1742339528406,-629.47,0.00037534,12]
[356367269,1742339528416,-500.0,0.00037534,12]
[356367270,1742339528426,-500.0,0.00037534,12]
[356367271,1742339528436,-500.0,0.00037534,12]
[356367272,1742339528446,-2483.39,0.00037534,12]
[356367273,1742339528456,-500.0,0.00037534,12]
[356367274,1742339528465,-818.98,0.00037534,12]
[356367275,1742339528475,-8678.86,0.00037534,12]
[356367276,1742339528485,-500.0,0.00037534,12]
[356367277,1742339528495,-500.0,0.00037534,12]
[356367278,1742339528505,-500.0,0.00037534,12]
[356367279,1742339528515,-852.66,0.00037534,12]
[356367280,1742339528524,-500.0,0.00037534,12]
[356367281,1742339528534,-1387.5,0.00037534,12]
[356367282,1742339528543,-609.81,0.00037534,12]
[356367283,1742339528553,-500.0,0.00037534,12]
[356367284,1742339528563,-1940.56,0.00037534,12]
[356367285,1742339528572,-5124.49,0.00037534,12]
[356367286,1742339528582,-500.0,0.00037534,12]
[356367287,1742339528592,-982.22,0.00037534,12]
[356367288,1742339528601,-848.28,0.00037534,12]
[356367289,1742339528611,-555.67,0.00037534,12]
[356367290,1742339528621,-500.0,0.00037534,12]
[356367291,1742339528630,-610.21,0.00037534,12]
[356367292,1742339528640,-797.64,0.00037534,12]
[356367293,1742339528650,-500.0,0.00037534,12]
[356367294,1742339528660,-1404.74,0.00037534,12]
[356367295,1742339528670,-500.0,0.00037534,12]
[356367296,1742339528680,-570.46,0.00037534,12]
[356367297,1742339528689,-626.53,0.00037534,12]
[356367298,1742339528699,-1037.27,0.00037534,12]
[356367299,1742339528710,-500.0,0.00037534,12]
[356367300,1742339528719,-2051.57,0.00037534,12]
[356367301,1742339528728,-1010.64,0.00037534,12]
[356367302,1742339528737,-500.0,0.00037534,12]
[356367303,1742339528747,-517.9,0.00037534,12]
[356367304,1742339528756,-492.30431783,0.00037534,12]
[356367305,1742339528766,-753.9,0.00037534,12]
[356367306,1742339528775,-976.72,0.00037534,12]
[356367307,1742339528787,-698.57,0.00037534,12]
[356367308,1742339528797,-810.35,0.00037534,12]
[356367309,1742339528806,-816.08,0.00037534,12]
[356367310,1742339528816,-1763.99,0.00037534,12]
[356367311,1742339528826,-500.0,0.00037534,12]
[356367312,1742339528835,-807.5,0.00037534,12]
[356367313,1742339528845,-500.0,0.00037534,12]
[356367314,1742339528854,-974.77,0.00037534,12]
[356367315,1742339528865,-1119.31,0.00037534,12]
[356367316,1742339528875,-500.0,0.00037534,12]
[356367317,1742339528884,-1305.41,0.00037534,12]
[356367318,1742339528893,-764.52,0.00037534,12]
[356367319,1742339528903,-1054.67,0.00037534,12]
[356367320,1742339528914,-500.0,0.00037534,12]
[356367321,1742339528924,-500.0,0.00037534,12]
[356367322,1742339528934,-636.48,0.00037534,12]
[356367323,1742339528943,-697.71,0.00037534,12]
[356367324,1742339528953,-500.0,0.00037534,2]
[356367325,1742339528962,-871.68,0.00037534,12]
[356367326,1742339528971,-784.0,0.00037534,12]
[356367327,1742339528980,-500.0,0.00037534,12]
[356367328,1742339528989,-1505.16,0.00037534,12]
[356367329,1742339528998,-500.0,0.00037534,12]
[356367330,1742339529007,-500.0,0.00037534,12]
[356367331,1742339529017,-3544.19,0.00037534,12]
[356367332,1742339529026,-500.0,0.00037534,12]
[356367333,1742339529035,-500.0,0.00037534,12]
[356367334,1742339529045,-1054.74,0.00037534,12]
[356367335,1742339529054,-3375.24,0.00037534,12]
[356367336,1742339529064,-500.0,0.00037534,12]
[356367337,1742339529073,-500.0,0.00037534,12]
[356367338,1742339529082,-1877.16,0.00037534,12]
[356367339,1742339529090,-500.0,0.00037534,12]
[356367340,1742339529099,-1691.18,0.00037534,12]
[356367341,1742339529108,-500.0,0.00037534,12]
[356367342,1742339529118,-1037.55,0.00037534,12]
[356367343,1742339529128,-517.11,0.00037534,12]
[356367344,1742339529137,-1000.0,0.00037534,4]
[356367345,1742339529147,-150.0,0.00037575,2]
[356367346,1742339529157,-4165.79806529,0.0003759,2]
[356367347,1742339529167,-1000.0,0.00037671,4]
[356367348,1742339529177,-1657.99266,0.00037688,30]
[356367349,1742339529186,-584.34,0.000377,3]
[356367350,1742339529194,-151.031817,0.00037798,120]
[356367351,1742339529204,-166.8470539,0.000378,2]
[356367352,1742339529213,-731.01508047,0.00037808,2]
[356367353,1742339529222,-500.0,0.00037808,120]
[356367354,1742339529230,-500.0,0.00037808,12]
[356367355,1742339529239,-660.95,0.00037808,12]
[356367356,1742339529248,-500.0,0.00037808,12]
[356367357,1742339529259,-1089.18,0.00037808,12]
[356367358,1742339529269,-1280.18,0.00037808,12]
[356367359,1742339529280,-500.0,0.00037808,12]
[356367360,1742339529289,-705.65,0.00037808,12]
[356367361,1742339529298,-500.0,0.00037808,12]
[356367362,1742339529307,-500.0,0.00037808,12]
[356367363,1742339529316,-839.95,0.00037808,12]
[356367364,1742339529325,-500.0,0.00037808,12]
[356367365,1742339529334,-405.48555988,0.00037808,12]
[356367366,1742339529343,-500.0,0.00037808,12]
[356367367,1742339529352,-500.0,0.00037808,12]
[356367368,1742339529361,-586.59,0.00037808,12]
[356367369,1742339529370,-512.22407904,0.00037808,12]
[356367370,1742339529379,-500.0,0.00037808,12]
[356367371,1742339529388,-659.86,0.00037808,12]
[356367372,1742339529398,-500.0,0.00037808,12]
[356367373,1742339529408,-500.0,0.00037808,12]
[356367374,1742339529417,-500.0,0.00037808,12]
[356367375,1742339529427,-500.0,0.00037808,12]
[356367376,1742339529436,-781.58,0.00037808,12]
[356367377,1742339529446,-500.0,0.00037808,12]
[356367378,1742339529455,-578.43,0.00037808,12]
[356367379,1742339529465,-716.41,0.00037808,12]
[356367380,1742339529474,-500.0,0.00037808,12]
[356367381,1742339529483,-875.76,0.00037808,12]
[356367382,1742339529493,-500.0,0.00037808,12]
[356367383,1742339529502,-500.0,0.00037808,12]
[356367384,1742339529511,-500.0,0.00037808,12]
[356367385,1742339529520,-500.0,0.00037808,12]
[356367386,1742339529529,-1293.1,0.00037808,12]
[356367387,1742339529538,-554.73,0.00037808,12]
[356367388,1742339529547,-500.0,0.00037808,12]
[356367389,1742339529556,-500.0,0.00037808,12]
[356367390,1742339529566,-887.4,0.00037808,12]
[356367391,1742339529575,-933.35,0.00037808,12]
[356367392,1742339529585,-645.27,0.00037808,12]
[356367393,1742339529594,-1270.34,0.00037808,12]
[356367394,1742339529603,-635.6,0.00037808,12]
[356367395,1742339529613,-546.63,0.00037808,12]
[356367396,1742339529622,-500.0,0.00037808,12]